bitfinex-derivatives/quotes_BNBF0:USTF0_20250904
["timestamp","ask_amount","ask_price","bid_price","bid_amount"]
[1757002329544,0.20590741,845.21,844.29,0.79864887]
[1757002331553,0.20590741,845.21,844.3,0.79864887]
[1757002332451,0.20590741,845.21,844.31,0.79864887]
[1757002333455,0.20590741,845.21,844.32,0.79864887]
[1757002334064,0.20590741,845.21,844.31,0.79864887]
[1757002334357,0.20590741,845.21,844.32,0.79864887]
[1757002336560,1.00459014,845.21,844.32,0.79864887]
[1757002337360,0.79868273,845.2,844.32,0.79864887]
[1757002338061,0.79868273,845.19,844.33,0.79864887]
[1757002338358,0.20590741,845.21,844.36,0.79864887]
[1757002338359,0.79868273,845.15,844.36,0.79864887]
[1757002340057,0.79868273,845.16,844.37,0.79864887]
[1757002340556,0.79868273,845.15,844.38,0.79864887]
[1757002340861,0.79868273,845.17,844.37,0.79864887]
[1757002342056,0.20590741,845.21,843.85,0.20587209]
[1757002342057,0.79868273,845.15,844.36,0.79864887]
[1757002343461,0.79868273,845.15,844.37,0.79864887]
[1757002344463,0.79868273,845.14,844.37,0.79864887]
[1757002344659,0.79868273,845.16,844.38,0.79864887]
[1757002344862,0.79868273,845.14,844.39,0.79864887]
[1757002345060,0.79868273,845.15,844.39,0.79864887]
[1757002345461,0.79868273,845.14,844.39,0.79864887]
[1757002345865,0.79868273,845.15,844.39,0.79864887]
[1757002347462,0.20590741,845.21,844.42,0.79864887]
[1757002347463,0.79868273,845.11,844.42,0.79864887]
[1757002347865,0.79868273,845.11,844.41,0.79864887]
[1757002348360,0.79868273,845.11,844.42,0.79864887]
[1757002350068,0.79868273,845.09,844.43,0.79864887]
[1757002350468,0.79868273,845.09,844.44,0.79864887]
[1757002350769,0.79868273,845.1,844.43,0.79864887]
[1757002352166,0.79868273,845.15,844.41,0.79864887]
[1757002352471,0.79868273,845.19,844.45,0.79864887]
[1757002353672,0.20590741,845.21,844.43,0.79864887]
[1757002354468,0.20590741,845.21,844.42,0.79864887]
[1757002355969,0.20590741,845.21,844.4,0.79864887]
[1757002357570,0.20590741,845.21,844.38,0.79864887]
[1757002357772,1.00459014,845.21,844.38,0.79864887]
[1757002357971,0.79868273,845.2,844.38,0.79864887]
[1757002358468,0.79868273,845.2,844.39,0.79864887]
[1757002359073,0.79868273,845.18,844.4,0.79864887]
[1757002360472,0.79868273,845.16,844.38,0.79864887]
[1757002360972,0.79868273,845.13,844.4,0.79864887]
[1757002361278,0.79868273,845.12,844.4,0.79864887]
[1757002362476,0.79868273,845.11,844.41,0.79864887]
[1757002363177,0.79868273,845.09,844.42,0.79864887]
[1757002363374,0.79868273,845.09,844.43,0.79864887]
[1757002364078,0.79868273,845.08,844.43,0.79864887]
[1757002364277,0.79868273,845.09,844.43,0.79864887]
[1757002364476,0.79868273,845.08,844.43,0.79864887]
[1757002365475,0.79868273,845.07,844.44,0.79864887]
[1757002365779,0.79868273,845.08,844.43,0.79864887]
[1757002367381,0.79868273,845.08,844.44,0.79864887]
[1757002367883,0.79868273,845.07,844.44,0.79864887]
[1757002368383,0.79868273,845.06,844.45,0.79864887]
[1757002368582,0.79868273,845.13,844.33,0.79864887]
[1757002369582,0.79868273,845.13,844.34,0.79864887]
[1757002370283,0.79868273,845.12,844.34,0.79864887]
[1757002370780,0.79868273,845.13,844.34,0.79864887]
[1757002371284,0.79868273,845.12,844.34,0.79864887]
[1757002372384,0.79868273,845.12,844.35,0.79864887]
[1757002373681,0.79868273,845.13,844.36,0.79864887]
[1757002374783,0.79868273,845.07,844.4,0.79864887]
[1757002375483,0.79868273,845.07,843.85,0.20587209]
[1757002375484,0.79868273,845.04,844.42,0.79864887]
[1757002375882,0.79868273,845.05,844.42,0.79864887]
[1757002377490,0.79868273,845.02,844.43,0.79864887]
[1757002377789,0.79868273,845.01,844.44,0.79864887]
[1757002379590,0.79868273,845.02,844.44,0.79864887]
[1757002380085,0.79868273,845.01,844.44,0.79864887]
[1757002380589,0.20596591,844.87,844.44,0.79864887]
[1757002388900,0.20596591,844.87,844.43,0.79864887]
[1757002390100,0.20596591,844.87,844.44,0.79864887]
[1757002390305,0.20596591,844.87,844.4,0.79864887]
[1757002390598,0.20596591,844.87,844.49,0.79864887]
[1757002391302,0.20596591,844.87,844.52,0.79864887]
[1757002391598,0.20596591,844.87,844.54,0.79864887]
[1757002391802,0.20596591,844.87,843.85,0.20587209]
[1757002391803,0.20596591,844.87,844.55,0.79864887]
[1757002393604,0.20596591,844.87,844.37,1.061921]
[1757002393605,0.20596591,844.87,844.56,0.79864887]
[1757002395105,0.20596591,844.87,844.56,0.79797716]
[1757002396505,0.20596591,844.87,844.57,0.79797716]
[1757002398408,0.79810262,845.14,844.57,0.79797716]
[1757002398607,0.20592264,845.02,844.57,0.79797716]
[1757002399209,0.20592264,845.02,844.56,0.79797716]
[1757002400410,0.20592264,845.02,844.39,1.061921]
[1757002400411,0.20592264,845.02,844.55,0.79797716]
[1757002401407,0.20592264,845.02,844.5,0.79797716]
[1757002401609,0.79810262,845.71,844.5,0.79797716]
[1757002401809,0.20587574,845.14,844.5,0.79797716]
[1757002402109,0.79810262,845.71,844.5,0.79797716]
[1757002402310,0.20587452,845.15,844.48,0.79797716]
[1757002402503,0.79810262,845.73,844.48,0.79797716]
[1757002402905,0.20587452,845.15,844.48,0.79797716]
[1757002403209,0.79810262,845.74,844.46,0.79797716]
[1757002403409,0.20587513,845.15,844.46,0.79797716]
[1757002403606,0.79810262,845.74,844.46,0.79797716]
[1757002403811,0.20587513,845.15,844.46,0.79797716]
[1757002404111,0.79810262,845.74,844.46,0.79797716]
[1757002404311,0.20587513,845.15,844.45,0.79797716]
[1757002404807,0.79810262,845.75,844.45,0.79797716]
[1757002405108,0.20587513,845.15,844.45,0.79797716]
[1757002405307,0.79810262,845.76,844.44,0.79797716]
[1757002405507,2.6601305,848.03,844.45,0.79797716]
[1757002405508,0.20587513,845.43,844.45,0.79797716]
[1757002406210,0.20587513,845.43,844.44,0.79797716]
[1757002407215,0.20587513,845.43,844.43,0.79797716]
[1757002407417,0.20587513,845.43,844.44,0.79797716]
[1757002407714,0.20587513,845.43,844.56,0.79797716]
[1757002407911,0.20587513,845.43,844.59,0.79797716]
[1757002408114,0.20587513,845.43,844.62,0.79797716]
[1757002408311,0.20587513,845.43,844.61,0.79797716]
[1757002409215,0.20587513,845.43,843.85,0.20587209]
[1757002409216,0.20587513,845.43,844.6,0.79797716]
[1757002409613,0.20587513,845.43,844.63,0.79797716]
[1757002410313,0.20587513,845.43,844.62,0.79797716]
[1757002410518,0.20587513,845.43,844.63,0.79797716]
[1757002410713,0.20587513,845.43,844.64,0.79797716]
[1757002411012,0.20587513,845.43,844.67,0.79797716]
[1757002412317,0.20587513,845.43,844.66,0.79797716]
[1757002413319,0.20587513,845.43,844.65,0.79797716]
[1757002413815,0.20587513,845.43,844.63,0.79797716]
[1757002414417,0.20587513,845.43,844.62,0.79797716]
[1757002416418,0.20587513,845.43,844.61,0.79797716]
[1757002419329,0.20587513,845.43,844.6,0.79797716]
[1757002421430,0.20587513,845.43,844.62,0.79797716]
[1757002424528,0.20587513,845.43,844.53,0.79797716]
[1757002424727,0.20587513,845.43,844.54,0.79797716]
[1757002427133,0.20587513,845.43,844.53,0.79797716]
[1757002429036,0.20587513,845.43,844.54,0.79797716]
[1757002430039,0.20587513,845.43,844.56,0.79797716]
[1757002431038,0.20587513,845.43,844.57,0.79797716]
[1757002431334,0.20587513,845.43,844.6,0.79797716]
[1757002432037,0.20587513,845.43,843.85,0.20587209]
[1757002432038,0.20587513,845.43,844.7,0.79797716]
[1757002433434,0.20587513,845.43,844.55,1.061921]
[1757002433435,0.20587513,845.43,844.62,0.79797716]
[1757002436536,0.20587513,845.43,844.63,0.79797716]
[1757002437137,0.20587513,845.43,844.62,0.79797716]
[1757002437341,0.20587513,845.43,844.63,0.79797716]
[1757002440140,0.20587513,845.43,844.64,0.79797716]
[1757002440345,0.20587513,845.43,844.65,0.79797716]
[1757002442245,0.20587513,845.43,844.66,0.79797716]
[1757002442741,0.20587513,845.43,844.73,0.79797716]
[1757002443146,0.20587513,845.43,844.74,0.79797716]
[1757002444746,0.20587513,845.43,844.75,0.79797716]
[1757002446445,0.20587513,845.43,844.47,1.5928816]
[1757002446446,0.20587513,845.43,844.74,0.79797716]
[1757002447245,0.20587513,845.43,844.75,0.79797716]
[1757002448346,0.20587513,845.43,844.76,0.79797716]
[1757002449246,0.20587513,845.43,844.77,0.79797716]
[1757002450247,0.20587513,845.43,844.78,0.79797716]
[1757002452145,0.20587513,845.43,844.79,0.79797716]
[1757002452349,0.20587513,845.43,844.78,0.79797716]
[1757002453346,0.20587513,845.43,844.79,0.79797716]
[1757002453552,0.20587513,845.43,844.68,0.79797716]
[1757002453752,0.20587513,845.43,844.67,0.79797716]
[1757002453953,0.20587513,845.43,844.65,0.79797716]
[1757002455248,0.20587513,845.43,844.66,0.79797716]
[1757002456152,0.20587513,845.43,844.67,0.79797716]
[1757002457253,0.20587513,845.43,844.64,0.79797716]
[1757002457753,0.20587513,845.43,844.69,0.79797716]
[1757002457950,0.20587513,845.43,844.73,0.79797716]
[1757002458450,1.00397775,845.43,844.74,0.79797716]
[1757002458855,0.20587513,845.43,844.73,0.79797716]
[1757002459251,0.20587513,845.43,844.74,0.79797716]
[1757002460151,1.00397775,845.43,844.75,0.79797716]
[1757002460357,0.79810262,845.41,844.77,0.79797716]
[1757002461256,0.79810262,845.39,844.78,0.79797716]
[1757002463059,0.79810262,845.36,844.75,0.79797716]
[1757002463259,0.79810262,845.29,844.67,0.79797716]
[1757002463455,0.79810262,845.36,844.64,0.79797716]
[1757002464359,0.79810262,845.36,844.63,0.79797716]
[1757002465257,0.79810262,845.37,844.63,0.79797716]
[1757002466660,0.79810262,845.35,844.64,0.79797716]
[1757002467362,0.79810262,845.29,844.68,0.79797716]
[1757002467661,0.79810262,845.29,844.67,0.79797716]
[1757002468761,0.79810262,845.27,844.68,0.79797716]
[1757002469358,0.79810262,845.27,844.67,0.79797716]
[1757002469563,0.79810262,845.35,844.6,0.79797716]
[1757002469859,0.79810262,845.37,844.59,0.79797716]
[1757002470058,0.79810262,845.32,844.55,0.79797716]
[1757002470264,0.79810262,845.33,844.54,0.79797716]
[1757002471361,0.79810262,845.33,844.53,0.79797716]
[1757002471759,0.20587513,845.43,844.47,0.79797716]
[1757002471960,0.20587513,845.43,844.49,0.79797716]
[1757002474165,0.20587513,845.43,844.48,0.79797716]
[1757002474962,0.20587513,845.43,844.53,0.79797716]
[1757002475864,0.20587513,845.43,844.57,0.79797716]
[1757002476060,0.20587513,845.43,844.55,0.79797716]
[1757002476361,0.20587513,845.43,844.02,0.20587026]
[1757002476362,0.20587513,845.43,844.59,0.79797716]
[1757002476566,0.20587513,845.43,844.46,0.79797716]
[1757002476766,0.20587513,845.43,844.57,0.79797716]
[1757002476967,0.20587513,845.43,844.58,0.79797716]
[1757002477164,0.20587513,845.43,844.59,0.79797716]
[1757002479171,0.20587513,845.43,844.6,0.79797716]
[1757002479571,0.20587513,845.43,844.62,0.79797716]
[1757002480671,0.20587513,845.43,844.64,0.79797716]
[1757002482074,0.20587513,845.43,844.66,0.79797716]
[1757002482475,0.20587513,845.43,844.77,0.79797716]
[1757002482675,0.20587513,845.43,844.81,0.79797716]
[1757002483076,0.20587513,845.43,844.79,0.79797716]
[1757002485581,0.20587513,845.43,844.59,0.79797716]
[1757002486378,0.20587513,845.43,844.21,1.061921]
[1757002486379,0.20587513,845.43,844.57,0.79797716]
[1757002487779,0.20587513,845.43,844.66,0.79797716]
[1757002488384,0.20587513,845.43,844.72,0.79797716]
[1757002488684,0.20587513,845.43,844.75,0.79797716]
[1757002489284,0.20587513,845.43,844.74,0.79797716]
[1757002489585,0.20587513,845.43,844.76,0.79797716]
[1757002489981,0.20587513,845.43,844.77,0.79797716]
[1757002490185,0.20587513,845.43,844.79,0.79797716]
[1757002491083,0.20587513,845.43,844.8,0.79797716]
[1757002491684,0.20587513,845.43,844.95,0.79797716]
[1757002492283,0.20587513,845.43,844.94,0.79797716]
[1757002493383,0.20587513,845.43,844.93,0.79797716]
[1757002495188,0.20587513,845.43,844.92,0.79797716]
[1757002495487,0.20587513,845.43,844.93,0.79797716]
[1757002496385,0.20587513,845.43,844.92,0.79797716]
[1757002498187,0.20587513,845.43,844.91,0.79797716]
[1757002499691,0.20587513,845.43,844.9,0.79797716]
[1757002500793,0.20587513,845.43,844.91,0.79797716]
[1757002500993,0.20587513,845.43,844.93,0.79797716]
[1757002501493,0.20587513,845.43,844.92,0.79797716]
[1757002501789,0.20587513,845.43,844.91,0.79797716]
[1757002501989,0.20587513,845.43,844.98,0.79797716]
[1757002502190,0.20587513,845.43,845.0,0.79797716]
[1757002503295,0.20587513,845.43,844.99,0.79797716]
[1757002503795,0.20587513,845.43,845.01,0.79797716]
[1757002504296,0.20587513,845.43,845.0,0.79797716]
[1757002504793,0.20587513,845.43,844.02,0.20587026]
[1757002504794,0.20587513,845.43,844.94,0.79797716]
[1757002505097,0.20587513,845.43,844.91,0.79797716]
[1757002505293,0.20587513,845.43,844.89,0.79797716]
[1757002505898,0.20587513,845.43,844.9,0.79797716]
[1757002506198,0.20587513,845.43,844.88,0.79797716]
[1757002506494,0.20587513,845.43,844.85,0.79797716]
[1757002506699,0.20587513,845.43,844.83,0.79797716]
[1757002508601,0.20587513,845.43,844.76,0.79797716]
[1757002510001,0.20587513,845.43,844.75,0.79797716]
[1757002510397,0.20587513,845.43,844.77,0.79797716]
[1757002510600,0.20587513,845.43,844.76,0.79797716]
[1757002512301,0.20587513,845.43,844.77,0.79797716]
[1757002512801,0.20587513,845.43,844.76,0.79797716]
[1757002513597,0.20587513,845.43,844.75,0.79797716]
[1757002514898,0.20587513,845.43,844.77,0.79797716]
[1757002515102,0.20587513,845.43,844.02,0.20587026]
[1757002515103,0.20587513,845.43,844.71,0.79797716]
[1757002515299,0.20587513,845.43,844.65,0.79797716]
[1757002515601,0.20587513,845.43,844.64,0.79797716]
[1757002516298,0.20587513,845.43,844.71,0.79797716]
[1757002516503,0.20587513,845.43,844.68,0.79797716]
[1757002516703,0.20587513,845.43,844.67,0.79797716]
[1757002517505,0.20587513,845.43,844.68,0.79797716]
[1757002518005,0.20587513,845.43,844.63,0.79797716]
[1757002518305,0.20587513,845.43,844.62,0.79797716]
[1757002520202,0.20587513,845.43,844.61,0.79797716]
[1757002522206,0.20587513,845.43,844.6,0.79797716]
[1757002525307,0.20587513,845.43,844.59,0.79797716]
[1757002526108,0.20587513,845.43,844.6,0.79797716]
[1757002527010,0.20587513,845.43,844.59,0.79797716]
[1757002527210,0.20587513,845.43,844.6,0.79797716]
[1757002527907,0.20587513,845.43,844.61,0.79797716]
[1757002528110,0.20587513,845.43,844.6,0.79797716]
[1757002528306,0.20587513,845.43,844.61,0.79797716]
[1757002528810,0.20587513,845.43,844.6,0.79797716]
[1757002529309,0.20587513,845.43,844.61,0.79797716]
[1757002529514,0.20587513,845.43,844.59,0.79797716]
[1757002530314,0.20587513,845.43,844.56,0.79797716]
[1757002530814,0.20587513,845.43,844.35,1.061921]
[1757002530815,0.20587513,845.43,844.58,0.79797716]
[1757002531009,0.20587513,845.43,844.53,0.79797716]
[1757002531214,0.20587513,845.43,844.54,0.79797716]
[1757002532713,1.00397775,845.43,844.54,0.79797716]
[1757002533413,0.79810262,845.42,844.55,0.79797716]
[1757002536018,1.00397775,845.43,844.55,0.79797716]
[1757002536314,0.20587513,845.43,844.56,0.79797716]
[1757002536520,0.79810262,845.4,844.6,0.79797716]
[1757002536720,0.20587513,845.43,844.67,0.79797716]
[1757002538320,0.20587513,845.43,844.66,0.79797716]
[1757002540220,0.20587513,845.43,844.67,0.79797716]
[1757002542328,0.20587513,845.43,844.35,1.5928816]
[1757002542329,0.20587513,845.43,844.68,0.79797716]
[1757002542723,0.20587513,845.43,844.64,0.79797716]
[1757002543023,0.20587513,845.43,844.65,0.79797716]
[1757002544222,0.20587513,845.43,844.66,0.79797716]
[1757002544425,0.20587513,845.43,844.65,0.79797716]
[1757002544623,0.20587513,845.43,844.68,0.79797716]
[1757002545025,0.20587513,845.43,844.42,1.061921]
[1757002545026,0.20587513,845.43,844.69,0.79797716]
[1757002546830,0.20587513,845.43,844.79,0.79797716]
[1757002547032,0.79810262,845.85,845.05,0.79797716]
[1757002547226,0.20580147,845.54,845.04,0.79797716]
[1757002547431,0.79810262,845.82,845.06,0.79797716]
[1757002547731,0.20578322,845.56,845.06,0.79797716]
[1757002548432,0.20578322,845.56,845.05,0.79797716]
[1757002550233,0.20578322,845.56,845.04,0.79797716]
[1757002551832,0.20578322,845.56,845.03,0.79797716]
[1757002552034,0.20578322,845.56,845.05,0.79797716]
[1757002552330,0.20578322,845.56,845.02,0.79797716]
[1757002554131,0.20578322,845.56,845.03,0.79797716]
[1757002554331,0.20578322,845.56,845.02,0.79797716]
[1757002556232,0.20578322,845.56,844.85,1.061921]
[1757002556437,0.20578322,845.56,845.01,0.79290621]
[1757002556833,0.20578322,845.56,845.02,0.79290621]
[1757002557233,0.20578322,845.56,845.01,0.79290621]
[1757002558034,0.20578322,845.56,845.0,0.79290621]
[1757002559939,0.20578322,845.56,844.99,0.79290621]
[1757002560543,0.20578322,845.56,844.65,1.5928816]
[1757002560544,0.20578322,845.56,844.89,0.79290621]
[1757002560745,0.20578322,845.56,844.99,0.79290621]
[1757002561043,0.79397023,846.3,845.03,0.79290621]
[1757002561245,0.20574429,845.7,845.03,0.79225644]
[1757002561540,0.79355337,846.31,845.02,0.79225644]
[1757002561840,0.20573699,845.72,845.02,0.79225644]
[1757002562039,0.79355337,846.31,845.02,0.79225644]
[1757002562240,0.20573699,845.72,845.03,0.79225644]
[1757002562443,0.20573699,845.72,845.04,0.79225644]
[1757002562644,0.79355337,846.29,845.04,0.79225644]
[1757002562946,0.2057382,845.72,845.04,0.79225644]
[1757002563144,0.79355337,846.29,845.04,0.79225644]
[1757002563347,0.20573699,845.98,845.03,0.79225644]
[1757002564344,0.20573699,845.98,845.02,0.79225644]
[1757002566346,0.20573699,845.98,845.01,0.79225644]
[1757002567245,0.20573699,845.98,845.0,0.79225644]
[1757002567445,0.20573699,845.98,845.05,0.79225644]
[1757002568247,0.20573699,845.98,845.04,0.79225644]
[1757002568545,0.20573699,845.98,845.07,0.79225644]
[1757002568746,0.20573699,845.98,845.1,0.79225644]
[1757002568949,0.20573699,845.98,845.14,0.79225644]
[1757002569352,0.20573699,845.98,845.13,0.79225644]
[1757002569851,0.20573699,845.98,845.15,0.79225644]
[1757002570253,0.20573699,845.98,845.14,0.79225644]
[1757002570549,0.20573699,845.98,845.12,0.79225644]
[1757002570753,0.20573699,845.98,845.14,0.79225644]
[1757002571255,0.20573699,845.98,845.13,0.79225644]
[1757002571450,0.20573699,845.98,844.95,1.061921]
[1757002571451,0.20573699,845.98,845.17,0.79225644]
[1757002572354,0.20573699,845.98,845.16,0.79225644]
[1757002573254,0.20573699,845.98,845.15,0.79225644]
[1757002574250,0.20573699,845.98,845.14,0.79225644]
[1757002574948,0.20573699,845.98,845.15,0.79225644]
[1757002575252,0.20573699,845.98,845.14,0.79225644]
[1757002576256,0.20573699,845.98,845.13,0.79225644]
[1757002577252,0.20573699,845.98,845.12,0.79225644]
[1757002577752,0.20573699,845.98,845.14,0.79225644]
[1757002578158,0.20573699,845.98,845.13,0.79225644]
[1757002580254,0.20573699,845.98,845.11,0.79225644]
[1757002581158,0.20573699,845.98,845.08,0.79225644]
[1757002581359,0.20573699,845.98,845.0,0.79225644]
[1757002581563,0.20573699,845.98,844.88,0.79225644]
[1757002582156,0.20573699,845.98,844.02,0.20587026]
[1757002582157,0.20573699,845.98,844.9,0.79225644]
[1757002582460,0.20573699,845.98,844.91,0.79225644]
[1757002582762,0.20573699,845.98,844.97,0.79225644]
[1757002583261,0.20573699,845.98,844.96,0.79225644]
[1757002584757,0.20573699,845.98,844.9,0.79225644]
[1757002584963,0.20573699,845.98,844.02,2.86067286]
[1757002584964,0.20573699,845.98,844.85,0.79225644]
[1757002589360,0.20573699,845.98,844.86,0.79225644]
[1757002590264,0.20573699,845.98,844.87,0.79225644]
[1757002590561,0.20573699,845.98,844.74,0.79225644]
[1757002590765,0.20573699,845.98,844.76,0.79225644]
[1757002591366,0.20573699,845.98,844.78,0.79225644]
[1757002592262,0.20573699,845.98,844.79,0.79225644]
[1757002593366,0.20573699,845.98,844.81,0.79225644]
[1757002594264,0.20573699,845.98,844.82,0.79225644]
[1757002594763,0.20573699,845.98,844.85,0.79225644]
[1757002595266,0.20573699,845.98,844.86,0.79225644]
[1757002595567,0.20573699,845.98,844.87,0.79225644]
[1757002596266,0.20573699,845.98,844.89,0.79225644]
[1757002596667,0.20573699,845.98,845.08,0.79225644]
[1757002596866,0.20573699,845.98,845.15,0.79225644]
[1757002597266,0.20573699,845.98,845.16,0.79225644]
[1757002598270,0.20573699,845.98,845.17,0.79225644]
[1757002599268,0.20573699,845.98,845.19,0.79225644]
[1757002600274,0.20573699,845.98,845.2,0.79225644]
[1757002600870,0.20573699,845.98,845.06,1.061921]
[1757002600871,0.20573699,845.98,845.21,0.79225644]
[1757002601374,0.20573699,845.98,845.22,0.79225644]
[1757002602372,0.20573699,845.98,845.24,0.79225644]
[1757002602675,0.20573699,845.98,845.21,0.79225644]
[1757002603270,0.20573699,845.98,844.11,3.7167237]
[1757002603271,0.20573699,845.98,845.23,0.79225644]
[1757002603675,0.20573699,845.98,844.25,2.6548026]
[1757002603676,0.20573699,845.98,845.22,0.79225644]
[1757002604278,0.20573699,845.98,845.24,0.79225644]
[1757002605277,0.20573699,845.98,845.25,0.79225644]
[1757002605876,0.20573699,845.98,845.27,0.79225644]
[1757002606279,0.20573699,845.98,845.29,0.79225644]
[1757002608281,0.20573699,845.98,845.3,0.79225644]
[1757002609081,0.20573699,845.98,845.31,0.79225644]
[1757002609276,0.20573699,845.98,845.29,0.79225644]
[1757002610282,0.20573699,845.98,845.3,0.79225644]
[1757002612381,0.20573699,845.98,845.31,0.79225644]
[1757002612585,0.20573699,845.98,845.27,0.79225644]
[1757002613488,0.20573699,845.98,845.28,0.79225644]
[1757002613689,0.20573699,845.98,845.21,0.79225644]
[1757002614290,0.20573699,845.98,845.22,0.79225644]
[1757002615694,0.79355337,845.94,845.27,0.79225644]
[1757002616392,0.79355337,845.93,845.27,0.79225644]
[1757002617294,0.79355337,845.93,845.13,1.061921]
[1757002617295,0.79355337,845.92,845.28,0.79225644]
[1757002618598,0.79355337,845.97,845.25,0.79225644]
[1757002619295,0.79355337,845.96,845.26,0.79225644]
[1757002621101,0.20573699,845.98,845.22,0.79225644]
[1757002622698,0.20573699,845.98,845.23,0.79225644]
[1757002623802,0.20573699,845.98,845.22,0.79225644]
[1757002625399,0.20573699,845.98,845.01,1.061921]
[1757002625400,0.20573699,845.98,845.23,0.79225644]
[1757002627303,0.20573699,845.98,845.04,1.061921]
[1757002627304,0.79355337,845.88,845.25,0.79225644]
[1757002627800,0.79355337,845.86,845.24,0.79225644]
[1757002628104,0.20573699,845.98,845.14,0.79225644]
[1757002628401,0.79355337,845.94,845.06,0.79225644]
[1757002628902,0.79355337,845.76,845.08,0.79225644]
[1757002629499,0.20573699,845.98,845.07,0.79225644]
[1757002629500,0.79355337,845.77,845.07,0.79225644]
[1757002630400,0.79355337,845.77,845.06,0.79225644]
[1757002631206,0.79355337,845.78,845.06,0.79225644]
[1757002632104,0.79355337,845.78,845.05,0.79225644]
[1757002632501,0.79355337,845.79,845.05,0.79225644]
[1757002633205,0.79355337,845.78,845.06,0.79225644]
[1757002633407,0.79355337,845.78,845.05,0.79225644]
[1757002634506,0.79355337,845.77,845.06,0.79225644]
[1757002636704,0.79355337,845.77,844.76,1.5928816]
[1757002636705,0.79355337,845.78,845.05,0.79225644]
[1757002638507,0.79355337,845.77,845.05,0.79225644]
[1757002640312,0.79355337,845.75,844.97,0.79225644]
[1757002640608,0.79355337,845.71,844.91,0.79225644]
[1757002640812,0.79355337,845.71,844.9,0.79225644]
[1757002642307,0.20573699,845.98,844.89,0.79225644]
[1757002642308,0.79355337,845.72,844.89,0.79225644]
[1757002642512,0.79355337,845.71,844.9,0.79225644]
[1757002643408,0.79355337,845.72,844.89,0.79225644]
[1757002644207,0.20573699,845.98,844.89,0.79225644]
[1757002644208,0.79355337,845.71,844.89,0.79225644]
[1757002644407,0.79355337,845.69,844.86,0.79225644]
[1757002645407,0.79355337,845.69,844.85,0.79225644]
[1757002645612,0.79355337,845.7,844.85,0.79225644]
[1757002646409,0.79355337,845.7,844.84,0.79225644]
[1757002646711,0.79355337,845.71,844.84,0.79225644]
[1757002646911,0.79355337,845.72,844.83,0.79225644]
[1757002647409,0.79355337,845.73,844.83,0.79225644]
[1757002647713,0.79355337,845.73,844.82,0.79225644]
[1757002648110,0.79355337,845.7,844.82,0.79225644]
[1757002648412,0.79355337,845.71,844.81,0.79225644]
[1757002649215,0.79355337,845.71,844.8,0.79225644]
[1757002649416,0.79355337,845.72,844.8,0.79225644]
[1757002650716,0.79355337,845.74,844.79,0.79225644]
[1757002651317,0.79355337,845.74,844.78,0.79225644]
[1757002652014,0.79355337,845.75,844.79,0.79225644]
[1757002652217,0.79355337,845.76,844.79,0.79225644]
[1757002653313,0.79355337,845.77,844.79,0.79225644]
[1757002653617,0.79355337,845.77,844.43,1.5928816]
[1757002653618,0.79355337,845.77,844.78,0.79225644]
[1757002655219,0.79355337,845.76,844.76,0.79225644]
[1757002656321,0.79355337,845.77,844.76,0.79225644]
[1757002656718,0.79355337,845.76,844.76,0.79225644]
[1757002657323,0.79355337,845.77,844.76,0.79225644]
[1757002660524,0.79355337,845.76,844.76,0.79225644]
[1757002663529,0.79355337,845.79,844.74,0.79225644]
[1757002665132,0.79355337,845.78,844.74,0.79225644]
[1757002665331,0.79355337,845.78,844.75,0.79225644]
[1757002665631,0.79355337,845.78,844.74,0.79225644]
[1757002666325,0.79355337,845.78,844.75,0.79225644]
[1757002666928,0.79355337,845.76,844.72,0.79225644]
[1757002667330,0.79355337,845.76,844.73,0.79225644]
[1757002667531,0.79355337,845.75,844.73,0.79225644]
[1757002669233,0.79355337,845.75,844.74,0.79225644]
[1757002669733,0.79355337,845.74,844.73,0.79225644]
[1757002670330,0.79355337,845.73,844.74,0.79225644]
[1757002671136,0.79355337,845.75,844.72,0.79225644]
[1757002671339,0.79355337,845.74,844.73,0.79225644]
[1757002672237,0.79355337,845.74,844.17,0.20583921]
[1757002672238,0.79355337,845.73,844.74,0.79225644]
[1757002673241,0.79355337,845.7,844.76,0.79225644]
[1757002673538,0.79355337,845.72,844.77,0.79225644]
[1757002674042,0.20573699,845.98,844.17,0.20583921]
[1757002674043,0.79355337,845.87,844.8,0.79225644]
[1757002674341,0.79355337,845.86,844.8,0.79225644]
[1757002675245,0.79355337,845.86,844.81,0.79225644]
[1757002676244,0.79355337,845.85,844.81,0.79225644]
[1757002676444,0.79355337,845.84,844.82,0.79225644]
[1757002677244,0.79355337,845.83,844.83,0.79225644]
[1757002679148,0.79355337,845.82,844.84,0.79225644]
[1757002681549,0.79355337,845.81,844.85,0.79225644]
[1757002682250,0.79355337,845.8,844.86,0.79225644]
[1757002682454,0.79355337,845.75,844.89,0.79225644]
[1757002683252,0.79355337,845.78,845.0,0.79225644]
[1757002683456,0.79355337,845.79,845.01,0.79225644]
[1757002684258,0.79355337,845.78,845.02,0.79225644]
[1757002684456,0.79355337,845.79,845.01,0.79225644]
[1757002684853,0.79355337,845.79,844.85,1.061921]
[1757002684854,0.79355337,845.79,845.02,0.79225644]
[1757002685255,0.79355337,845.78,845.03,0.79225644]
[1757002686255,0.79355337,845.78,845.05,0.79225644]
[1757002687260,0.79355337,845.77,845.06,0.79225644]
[1757002689062,0.79355337,845.76,845.06,0.79225644]